bitfinex/quotes_BTCUSD_20230109
["timestamp","ask_amount","ask_price","bid_price","bid_amount"]
[1673225550185,4.35777668,17176.0,17175.0,0.00586848]
[1673225550451,3.87314285,17176.0,17175.0,0.00586848]
[1673225550695,4.59251891,17176.0,17175.0,0.00586848]
[1673225550972,5.60618679,17176.0,17175.0,0.00586848]
[1673225551218,1.0143,17175.0,17174.0,0.14359224]
[1673225551485,3.71553316,17175.0,17174.0,0.14359224]
[1673225552567,3.85153316,17175.0,17174.0,0.14859224]
[1673225552827,3.85153316,17175.0,17173.0,0.00484189]
[1673225552828,4.25488316,17175.0,17173.0,0.00484189]
[1673225553086,3.41583388,17174.0,17173.0,0.00484189]
[1673225553344,5.16265888,17174.0,17173.0,0.00484189]
[1673225554415,5.67900357,17174.0,17173.0,0.00884189]
[1673225554672,5.09131561,17174.0,17173.0,0.00484189]
[1673225555147,5.18231561,17174.0,17173.0,0.00684189]
[1673225555148,5.19751802,17174.0,17173.0,0.00684189]
[1673225555657,5.69376734,17174.0,17173.0,0.00484189]
[1673225555903,5.83076734,17174.0,17173.0,0.00584189]
[1673225556159,5.83076734,17174.0,17173.0,0.00484189]
[1673225556654,4.76259002,17174.0,17173.0,0.00484189]
[1673225556902,5.38702503,17174.0,17173.0,0.00484189]
[1673225557149,1.0143,17173.0,17171.0,0.00610681]
[1673225557393,4.48289148,17172.0,17171.0,0.00610681]
[1673225557644,3.89556053,17172.0,17171.0,0.00610681]
[1673225558405,4.41745817,17172.0,17171.0,0.00710681]
[1673225558910,4.41745817,17172.0,17171.0,0.00610681]
[1673225559153,4.67664974,17172.0,17171.0,0.00710681]
[1673225559401,5.26398069,17172.0,17171.0,0.00710681]
[1673225559670,5.29939738,17172.0,17171.0,0.00710681]
[1673225559916,5.26398069,17172.0,17171.0,0.00710681]
[1673225560162,4.15977671,17172.0,17171.0,6.81e-06]
[1673225560413,4.15977671,17172.0,17170.0,0.00547936]
[1673225560414,0.4,17171.0,17170.0,0.00547936]
[1673225560671,0.4,17170.0,17168.0,0.00658441]
[1673225560922,3.69093305,17169.0,17168.0,0.00658441]
[1673225561163,4.30523305,17169.0,17168.0,0.00658441]
[1673225561417,4.41793305,17169.0,17168.0,0.00658441]
[1673225561662,4.45334974,17169.0,17168.0,0.00658441]
[1673225561945,5.53329795,17169.0,17168.0,0.00658441]
[1673225562197,5.66729795,17169.0,17168.0,0.00858441]
[1673225562512,6.65799805,17169.0,17168.0,0.00858441]
[1673225562706,4.92387286,17169.0,17168.0,0.00858441]
[1673225562947,4.92387286,17169.0,17168.0,0.2462623]
[1673225562948,4.71206743,17169.0,17168.0,0.2462623]
[1673225563196,4.20542771,17169.0,17168.0,0.00858441]
[1673225563441,4.19692771,17169.0,17168.0,0.00858441]
[1673225563946,4.63152719,17169.0,17168.0,0.00858441]
[1673225564202,4.93152719,17169.0,17168.0,0.00858441]
[1673225564457,4.9791921,17169.0,17168.0,0.00858441]
[1673225564711,2.09613076,17169.0,17168.0,0.2462623]
[1673225564966,1.92227202,17169.0,17168.0,0.00858441]
[1673225565250,1.48768277,17169.0,17168.0,0.00858441]
[1673225566478,1.74842351,17169.0,17168.0,0.00858441]
[1673225567262,1.92227202,17169.0,17168.0,0.00858441]
[1673225567592,2.09613076,17169.0,17168.0,0.00858441]
[1673225568286,2.35707061,17169.0,17168.0,0.00858441]
[1673225568534,2.09613076,17169.0,17168.0,0.00858441]
[1673225568792,2.35707063,17169.0,17167.0,0.60157338]
[1673225569034,0.17395861,17168.0,17167.0,0.60157338]
[1673225569287,0.16895861,17168.0,17167.0,0.60157338]
[1673225569570,0.16895861,17168.0,17167.0,0.58657338]
[1673225570075,0.18304671,17168.0,17167.0,0.58757338]
[1673225570326,0.18304671,17168.0,17167.0,0.58657338]
[1673225570574,0.1000881,17168.0,17167.0,0.58857338]
[1673225571853,0.1000881,17168.0,17165.0,0.43707219]
[1673225572112,1.34553179,17168.0,17166.0,0.00118127]
[1673225572394,1.34553179,17168.0,17166.0,0.4]
[1673225572681,2.18895066,17168.0,17165.0,0.43707219]
[1673225572949,2.45061557,17168.0,17165.0,0.43707219]
[1673225573175,3.54598627,17168.0,17165.0,0.001]
[1673225573456,0.4,17166.0,17165.0,0.001]
[1673225573705,0.982546,17166.0,17165.0,0.001]
[1673225574016,0.978356,17166.0,17165.0,0.001]
[1673225574480,0.978356,17166.0,17164.0,0.1129]
[1673225574953,1.560902,17166.0,17164.0,0.1129]
[1673225575778,1.83184187,17166.0,17165.0,0.009]
[1673225576022,1.82184187,17166.0,17164.0,0.1129]
[1673225576283,1.83184187,17166.0,17164.0,0.1219]
[1673225576537,2.83943387,17166.0,17164.0,0.009]
[1673225576819,3.89181758,17166.0,17164.0,0.009]
[1673225577054,1.55757156,17165.0,17164.0,0.009]
[1673225577302,3.5274527,17165.0,17164.0,0.009]
[1673225577557,3.52794257,17165.0,17164.0,0.009]
[1673225578074,3.84192995,17165.0,17164.0,0.009]
[1673225578332,3.54192995,17165.0,17164.0,0.009]
[1673225578584,0.4,17164.0,17162.0,0.00469164]
[1673225578857,1.165296,17163.0,17162.0,0.00469164]
[1673225579857,1.165296,17163.0,17162.0,0.01369164]
[1673225580114,1.165296,17163.0,17162.0,0.00469164]
[1673225580367,1.179296,17163.0,17162.0,0.01469164]
[1673225581683,2.161944,17163.0,17162.0,0.01469164]
[1673225581943,2.5971354,17163.0,17162.0,0.01469164]
[1673225582194,2.34983935,17163.0,17162.0,0.01469164]
[1673225583266,1.94983935,17163.0,17162.0,0.01469164]
[1673225585035,1.77576623,17163.0,17162.0,0.01469164]
[1673225585282,1.94983935,17163.0,17162.0,0.01469164]
[1673225585537,2.21095763,17163.0,17162.0,0.01469164]
[1673225585781,1.94983935,17163.0,17162.0,0.01469164]
[1673225586031,2.21095763,17163.0,17162.0,0.01469164]
[1673225587577,2.38503929,17163.0,17162.0,0.01469164]
[1673225588078,1.9500407,17163.0,17162.0,0.01469164]
[1673225588346,1.3673927,17163.0,17162.0,0.01469164]
[1673225588609,0.02782223,17163.0,17162.0,1.03473025]
[1673225588871,0.02782223,17163.0,17162.0,1.40040425]
[1673225590972,0.02782223,17163.0,17162.0,1.98308625]
[1673225592532,0.02782223,17163.0,17162.0,1.98426779]
[1673225593301,0.02782223,17163.0,17162.0,2.56694979]
[1673225594317,0.02782223,17163.0,17162.0,2.56576825]
[1673225594561,0.02782223,17163.0,17162.0,1.40040425]
[1673225594796,0.2020967,17163.0,17162.0,1.03473025]
[1673225595335,0.2020967,17163.0,17162.0,1.40040425]
[1673225595863,0.25057823,17163.0,17162.0,1.40040425]
[1673225596368,0.51169651,17163.0,17162.0,1.40040425]
[1673225596627,0.25057823,17163.0,17162.0,1.40040425]
[1673225596877,0.51169651,17163.0,17162.0,0.88780425]
[1673225597866,0.44169651,17163.0,17162.0,0.52213025]
[1673225598113,0.45551576,17163.0,17162.0,0.52213025]
[1673225598623,0.67157384,17163.0,17162.0,0.52213025]
[1673225601489,0.84505504,17163.0,17162.0,0.52213025]
[1673225601752,1.10674514,17163.0,17162.0,0.52213025]
[1673225601991,1.42770304,17163.0,17162.0,0.52213025]
[1673225602250,1.2547921,17163.0,17162.0,0.52213025]
[1673225602749,1.2547921,17163.0,17162.0,0.40903025]
[1673225603737,1.68939158,17163.0,17162.0,0.40903025]
[1673225603982,1.25477863,17163.0,17162.0,0.40903025]
[1673225604765,1.42770304,17163.0,17162.0,0.40903025]
[1673225607008,0.84505504,17163.0,17162.0,0.40903025]
[1673225607272,0.49690026,17163.0,17162.0,0.40903025]
[1673225607557,0.64494878,17163.0,17162.0,0.01469164]
[1673225607789,1.22759678,17163.0,17162.0,0.01469164]
[1673225608042,2.051328,17163.0,17162.0,0.01469164]
[1673225608297,3.15559209,17163.0,17162.0,0.01469164]
[1673225609047,2.75559209,17163.0,17162.0,0.01469164]
[1673225611521,2.29414678,17163.0,17162.0,0.01469164]
[1673225612288,2.81880495,17163.0,17162.0,0.01469164]
[1673225612545,3.70591014,17163.0,17162.0,0.01469164]
[1673225612796,3.40591014,17163.0,17162.0,0.01469164]
[1673225613533,3.40591014,17163.0,17162.0,0.00469164]
[1673225613779,3.54091014,17163.0,17162.0,0.00669164]
[1673225614275,3.84091014,17163.0,17162.0,0.00669164]
[1673225614528,3.70591014,17163.0,17162.0,0.00669164]
[1673225614787,3.84191014,17163.0,17162.0,0.00469164]
[1673225615027,3.84191014,17163.0,17162.0,0.00669164]
[1673225615283,3.97791014,17163.0,17162.0,0.00669164]
[1673225615527,3.39080495,17163.0,17162.0,0.00669164]
[1673225615784,3.98005446,17163.0,17162.0,0.00669164]
[1673225616030,3.68005446,17163.0,17162.0,0.00669164]
[1673225616283,3.98005446,17163.0,17162.0,0.00669164]
[1673225617301,3.39080495,17163.0,17162.0,0.00669164]
[1673225617803,3.39080495,17163.0,17162.0,0.00602248]
[1673225618056,4.11750495,17163.0,17162.0,0.00602248]
[1673225618313,4.23060495,17163.0,17162.0,0.00602248]
[1673225618557,4.23910495,17163.0,17162.0,0.00602248]
[1673225619303,4.23060495,17163.0,17162.0,0.00602248]
[1673225619573,4.23060495,17163.0,17157.0,0.00015]
[1673225619574,1.62235819,17162.0,17157.0,0.00015]
[1673225619833,0.43607996,17158.0,17157.0,0.00015]
[1673225620079,2.09708573,17158.0,17157.0,0.00015]
[1673225620807,3.30718573,17158.0,17157.0,0.00015]
[1673225621068,3.90308007,17158.0,17157.0,0.00015]
[1673225621333,3.91308007,17158.0,17157.0,0.01915]
[1673225621590,3.91308007,17158.0,17157.0,0.019]
[1673225621591,3.23209184,17158.0,17157.0,0.019]
[1673225621842,2.88323624,17158.0,17157.0,0.019]
[1673225622088,3.05771489,17158.0,17157.0,0.019]
[1673225622333,2.8832365,17158.0,17157.0,0.019]
[1673225623085,3.05771489,17158.0,17157.0,0.019]
[1673225623666,1.09028325,17158.0,17157.0,0.019]
[1673225623860,0.82871783,17158.0,17157.0,0.019]
[1673225624097,0.24589983,17158.0,17157.0,0.019]
[1673225624608,0.24589983,17158.0,17157.0,0.01957197]
[1673225624821,0.24589983,17158.0,17157.0,0.019]
[1673225625562,0.24589983,17158.0,17157.0,0.01957197]
[1673225625820,0.24589983,17158.0,17157.0,0.019]
[1673225627464,0.02307634,17158.0,17157.0,0.13726073]
[1673225627708,0.02307634,17158.0,17157.0,1.19888673]
[1673225628246,0.02307634,17158.0,17157.0,1.59888673]
[1673225628535,0.02307634,17158.0,17157.0,2.18173873]
[1673225630955,0.02307634,17158.0,17157.0,2.76459073]
[1673225632933,0.02307634,17158.0,17157.0,2.76401876]
[1673225636034,0.02307634,17158.0,17157.0,3.64776896]
[1673225636287,0.00015,17160.0,17158.0,0.4]
[1673225636549,0.2238463,17162.0,17159.0,2.340226]
[1673225636800,0.04950434,17162.0,17161.0,0.1123]
[1673225637054,0.04950434,17162.0,17161.0,2.57689989]
[1673225637313,0.44612332,17164.0,17161.0,2.339222]
[1673225637564,0.44612332,17164.0,17163.0,0.1123]
[1673225637875,0.44612332,17164.0,17163.0,0.477974]
[1673225638084,0.1845579,17164.0,17163.0,0.877974]
[1673225638342,0.01021594,17164.0,17163.0,1.11565189]
[1673225638597,0.01021594,17164.0,17163.0,2.26947]
[1673225638861,0.01021594,17164.0,17163.0,2.39717873]
[1673225639176,0.02271482,17164.0,17163.0,2.40017873]
[1673225639636,1.482e-05,17164.0,17163.0,3.42149127]
[1673225639891,1.482e-05,17164.0,17163.0,2.78227]
[1673225640144,0.01169293,17164.0,17163.0,2.28217]
[1673225640424,0.00669293,17164.0,17163.0,2.04407]
[1673225640667,0.00669293,17164.0,17163.0,1.461422]
[1673225641185,0.01196303,17164.0,17163.0,1.461422]
[1673225641445,0.01196303,17164.0,17163.0,1.82051068]
[1673225641723,0.01196303,17164.0,17163.0,2.40145367]
[1673225641957,0.01196303,17164.0,17163.0,2.65587578]
[1673225642233,0.00669293,17164.0,17163.0,2.51087578]
[1673225642495,0.00669293,17164.0,17163.0,2.80106499]
[1673225642750,0.00669293,17164.0,17163.0,2.4843871]
[1673225643030,0.00669293,17164.0,17163.0,2.73986441]
[1673225643295,0.00015,17166.0,17163.0,3.78615169]
[1673225643296,0.01208449,17166.0,17163.0,3.78615169]
[1673225643553,0.01208449,17166.0,17165.0,1.2483]
[1673225643813,0.01208449,17166.0,17165.0,3.71246366]
[1673225644066,0.00015,17166.0,17165.0,11.62247949]
[1673225644553,0.05904212,17168.0,17165.0,12.32247949]
[1673225644555,0.05904212,17168.0,17165.0,12.22105035]
[1673225644818,0.05904212,17168.0,17167.0,0.3379]
[1673225645072,0.00936677,17168.0,17167.0,3.50064851]
[1673225645331,0.00936677,17168.0,17167.0,3.15119668]
[1673225645844,0.00936677,17168.0,17167.0,2.156398]
[1673225646374,0.00936677,17168.0,17167.0,2.41158468]
[1673225646623,0.00936677,17168.0,17167.0,2.53975952]
[1673225646918,0.00936677,17168.0,17167.0,3.47018926]
[1673225647127,0.02145475,17168.0,17167.0,4.00786715]
[1673225647380,0.00951677,17170.0,17168.0,0.50321097]
[1673225647637,0.00951677,17170.0,17169.0,1.530564]
[1673225647638,0.0579983,17170.0,17169.0,1.530564]
[1673225647897,0.0578483,17170.0,17169.0,2.156764]
[1673225648156,0.0578483,17170.0,17169.0,2.043664]
[1673225648411,0.00936677,17170.0,17169.0,2.043664]
[1673225648917,0.00936677,17170.0,17169.0,2.184664]
[1673225649171,0.00936677,17170.0,17169.0,2.16841696]
[1673225650467,0.00936677,17170.0,17169.0,1.07287196]
[1673225650764,0.00936677,17170.0,17169.0,0.49042696]
[1673225651020,0.22180677,17170.0,17169.0,0.12475296]
[1673225651275,0.00936677,17170.0,17169.0,0.12475296]
[1673225651545,0.00936677,17170.0,17169.0,0.13699608]
[1673225651791,0.00936677,17170.0,17169.0,0.12499608]
[1673225652078,0.00936677,17170.0,17169.0,0.13699608]
[1673225652343,0.00936677,17170.0,17169.0,0.13675296]
[1673225652592,0.00936677,17170.0,17169.0,0.13699608]
[1673225652872,10.00936677,17170.0,17169.0,0.12475296]
[1673225653400,10.0578483,17170.0,17169.0,0.12475296]
[1673225653654,10.0578483,17170.0,17169.0,0.12499608]
[1673225653914,10.0578483,17170.0,17169.0,0.13699608]
[1673225654722,10.0578483,17170.0,17169.0,0.13675296]
[1673225655138,10.0578483,17170.0,17169.0,0.012]
[1673225656636,10.0578483,17170.0,17168.0,0.12560656]
[1673225656894,10.0578483,17170.0,17169.0,0.012]
[1673225657138,10.0578483,17170.0,17168.0,0.12560656]
[1673225658389,10.0578483,17170.0,17168.0,0.12590112]
[1673225658625,10.0578483,17170.0,17168.0,0.13760656]
[1673225658872,10.0578483,17170.0,17168.0,0.72008156]
[1673225659369,10.0578483,17170.0,17169.0,0.20604]
[1673225659873,9.0578483,17170.0,17169.0,0.20604]
[1673225660402,9.0578483,17170.0,17168.0,1.10808156]
[1673225660914,9.0578483,17170.0,17168.0,0.12560656]
[1673225661408,9.46346555,17170.0,17168.0,0.12560656]
[1673225661668,0.4,17169.0,17166.0,0.582523]
[1673225661916,0.80585398,17169.0,17166.0,0.704035]
[1673225662171,0.04848153,17167.0,17166.0,0.582523]
[1673225662433,0.02142957,17167.0,17166.0,0.582523]
[1673225662682,0.39437804,17169.0,17167.0,0.52817098]
[1673225662937,0.69261424,17170.0,17167.0,1.34836087]
[1673225663210,0.18555953,17170.0,17168.0,0.60335189]
[1673225663498,0.18555953,17170.0,17169.0,0.365674]
[1673225663499,0.04870144,17170.0,17169.0,0.365674]
[1673225663694,0.04870144,17170.0,17169.0,0.765674]
[1673225664185,0.4,17172.0,17169.0,0.765674]
[1673225664431,0.4,17172.0,17170.0,0.365674]
[1673225664678,0.4,17172.0,17169.0,0.63767789]
[1673225664933,0.4,17172.0,17169.0,0.4]
[1673225665946,0.4,17172.0,17169.0,0.407]
[1673225666458,0.4,17172.0,17169.0,0.007]
[1673225667200,0.4,17172.0,17169.0,0.407]
[1673225668704,0.93033319,17172.0,17169.0,0.407]
[1673225668947,1.34296223,17172.0,17169.0,0.007]
[1673225669821,1.34296223,17172.0,17170.0,0.00139862]
[1673225669966,0.93033319,17172.0,17169.0,0.007]
[1673225670212,1.34301531,17172.0,17169.0,0.007]
[1673225670769,0.93033319,17172.0,17169.0,0.007]
[1673225671023,0.93033319,17172.0,17169.0,0.13628614]
[1673225671258,0.93033319,17172.0,17169.0,0.12928614]
[1673225671784,0.93033319,17172.0,17169.0,0.52928614]
[1673225672033,0.53033319,17172.0,17169.0,0.76696403]
[1673225672294,0.53033319,17172.0,17169.0,0.77396403]
[1673225672545,0.93033319,17172.0,17169.0,0.53628614]
[1673225673785,0.4,17171.0,17169.0,0.13628614]
[1673225674029,0.4,17171.0,17170.0,0.00040479]
[1673225675003,0.4,17171.0,17169.0,0.13228614]
[1673225675265,0.4,17171.0,17169.0,0.00040482]
[1673225675514,0.4,17171.0,17170.0,0.003]
[1673225675515,0.81268733,17171.0,17170.0,0.003]
[1673225675767,1.01042102,17171.0,17170.0,0.003]
[1673225676011,1.42317253,17171.0,17170.0,0.003]
[1673225676258,1.42317253,17171.0,17168.0,0.582457]
[1673225676508,1.04789612,17170.0,17169.0,0.00340482]
[1673225676776,1.04789612,17170.0,17169.0,0.003]
[1673225677025,0.7863307,17170.0,17169.0,0.003]
[1673225677283,1.04789612,17170.0,17167.0,0.69498662]
[1673225677531,1.46057558,17170.0,17167.0,0.69498662]
[1673225677779,0.43593205,17169.0,17167.0,0.69498662]
[1673225678521,0.57436663,17169.0,17167.0,0.69498662]
[1673225678799,0.43593205,17169.0,17167.0,0.69498662]
[1673225679301,0.17436663,17169.0,17167.0,0.70698662]
[1673225679552,0.17436663,17169.0,17168.0,0.00134909]
[1673225679841,0.17436663,17169.0,17168.0,0.11471361]
[1673225680057,0.78478765,17170.0,17168.0,1.06286661]
[1673225680322,0.43593205,17170.0,17169.0,0.765674]
[1673225680566,0.43593205,17170.0,17168.0,0.69719261]
[1673225681570,0.43593205,17170.0,17169.0,0.4]
[1673225681817,0.43593205,17170.0,17168.0,0.69719261]
[1673225682060,0.43593205,17170.0,17168.0,1.09719261]
[1673225682568,0.83593205,17170.0,17168.0,0.69591097]
[1673225682811,0.17436663,17169.0,17168.0,0.69591097]
[1673225683833,0.17436663,17169.0,17168.0,0.70791097]
[1673225684078,0.17436663,17169.0,17168.0,1.10791097]
[1673225685338,0.17436663,17169.0,17168.0,0.70791097]
[1673225686584,0.43593205,17169.0,17168.0,0.12536452]
[1673225686829,0.61042102,17169.0,17168.0,0.12536452]
[1673225687079,0.78493556,17169.0,17168.0,0.012]
[1673225687597,0.78493556,17169.0,17168.0,0.01192523]
[1673225687853,0.83607996,17169.0,17168.0,0.01192523]
[1673225688897,0.83607996,17169.0,17168.0,0.01321024]
[1673225689157,0.83607996,17169.0,17168.0,0.01192523]
[1673225689668,3.19491274,17169.0,17168.0,0.01192523]
[1673225689988,3.25406179,17169.0,17168.0,0.01192523]
[1673225690242,3.84276974,17169.0,17168.0,0.01192523]
[1673225690502,3.25406179,17169.0,17168.0,0.01192523]
[1673225690753,3.77787675,17169.0,17165.0,0.10715871]
[1673225691009,0.78572607,17166.0,17165.0,0.3448366]
[1673225691275,0.78572607,17166.0,17165.0,0.10715871]
[1673225691276,0.4365143,17166.0,17165.0,0.10715871]
[1673225692302,0.78572607,17166.0,17165.0,0.10715871]
[1673225692606,0.61112059,17166.0,17165.0,0.11615871]
[1673225692863,0.43644118,17166.0,17165.0,0.10715871]
[1673225693123,0.43644118,17166.0,17165.0,0.003]
[1673225693372,0.43644118,17166.0,17164.0,0.41934792]
[1673225693631,0.78565346,17166.0,17165.0,0.003]
[1673225693918,0.61112059,17166.0,17165.0,0.003]
[1673225694689,0.4363913,17166.0,17164.0,0.55102363]
[1673225695651,0.4363913,17166.0,17164.0,0.58389169]
[1673225696322,0.78560307,17166.0,17164.0,0.58089169]
[1673225696562,0.4363913,17166.0,17164.0,0.58089169]
[1673225696783,0.4363913,17166.0,17164.0,0.58389169]
[1673225697002,0.7363913,17166.0,17164.0,0.18258888]
[1673225697453,0.7363913,17166.0,17164.0,0.17958888]
[1673225697679,0.4363913,17166.0,17164.0,0.18258888]
[1673225698245,1.18560307,17166.0,17164.0,0.18258888]
[1673225698492,0.8363913,17166.0,17164.0,0.18258888]
[1673225698991,0.8363913,17166.0,17164.0,0.17958888]
[1673225699238,0.17448248,17165.0,17164.0,0.18265401]
[1673225699486,0.8363913,17166.0,17164.0,0.18265401]
[1673225700229,1.76815007,17166.0,17164.0,0.17958888]
[1673225700482,0.17448248,17165.0,17164.0,0.17958888]
[1673225700732,1.4189383,17166.0,17164.0,0.17958888]
[1673225700997,1.4189383,17166.0,17164.0,0.18258888]
[1673225701258,0.8363913,17166.0,17164.0,0.18258888]
[1673225701509,0.4363913,17166.0,17164.0,0.18265401]
[1673225701771,0.8314423,17166.0,17164.0,0.17958888]
[1673225702024,0.4314423,17166.0,17164.0,0.18258888]
[1673225702290,0.8314423,17166.0,17164.0,0.18258888]
[1673225702509,0.8314423,17166.0,17164.0,0.17958888]
[1673225703062,0.17448248,17165.0,17164.0,0.15402363]
[1673225703324,0.17448248,17165.0,17164.0,0.02234792]
[1673225703590,0.17448248,17165.0,17164.0,0.01934792]
[1673225703591,1.38433749,17165.0,17164.0,0.01934792]
[1673225703846,2.4034322,17165.0,17164.0,0.01934792]
[1673225704120,3.0991122,17165.0,17164.0,0.01934792]
[1673225704617,3.0991122,17165.0,17164.0,0.02234792]
[1673225704827,3.0991122,17165.0,17164.0,0.01934792]
[1673225704828,1.62747177,17165.0,17164.0,0.01934792]
[1673225705360,2.02747177,17165.0,17164.0,0.01934792]
[1673225706378,2.44015001,17165.0,17164.0,0.01934792]
[1673225706640,2.87666472,17165.0,17164.0,0.01934792]
[1673225706918,2.44015001,17165.0,17164.0,0.01934792]
[1673225707189,2.20173541,17165.0,17164.0,0.01934792]
[1673225707438,1.26994364,17165.0,17164.0,0.01934792]
[1673225708037,1.85252364,17165.0,17164.0,0.01934792]
[1673225708954,2.02747177,17165.0,17164.0,0.01934792]
[1673225709209,2.20171744,17165.0,17164.0,0.01934792]
[1673225709464,1.85250567,17165.0,17164.0,0.01934792]
[1673225710471,2.26511505,17165.0,17164.0,0.01934792]
[1673225710720,2.70143028,17165.0,17164.0,0.01934792]
[1673225710975,3.28401028,17165.0,17164.0,0.01934792]
[1673225711229,3.45917586,17165.0,17164.0,0.01934792]
[1673225711495,2.87659586,17165.0,17164.0,0.01934792]
[1673225711749,3.12808387,17165.0,17164.0,0.01934792]
[1673225712011,3.47647967,17165.0,17164.0,0.01934792]
[1673225712524,3.12808387,17165.0,17164.0,0.01934792]
[1673225712782,3.71066387,17165.0,17164.0,0.01934792]
[1673225713059,3.27414916,17165.0,17164.0,0.01934792]
[1673225713827,3.70959021,17165.0,17164.0,0.01934792]
[1673225714330,3.27414916,17165.0,17164.0,0.01934792]
[1673225714576,2.86153978,17165.0,17164.0,0.01934792]
[1673225715326,3.32060828,17165.0,17164.0,0.01934792]
[1673225715602,3.84442324,17165.0,17164.0,0.01934792]
[1673225715976,3.32060828,17165.0,17164.0,0.01934792]
[1673225715978,3.84442324,17165.0,17164.0,0.01934792]
[1673225716410,3.95722324,17165.0,17164.0,0.01934792]
[1673225716617,4.25722324,17165.0,17164.0,0.01934792]
[1673225717070,4.25722324,17165.0,17164.0,0.02934792]
[1673225717288,4.25722324,17165.0,17164.0,0.01934792]
[1673225717517,4.25722324,17165.0,17164.0,0.02934792]
[1673225717720,3.95722324,17165.0,17164.0,0.02934792]
[1673225718232,3.94722324,17165.0,17164.0,0.02934792]
[1673225719023,4.40275672,17165.0,17164.0,0.02934792]
[1673225719243,3.9404114,17165.0,17164.0,0.02934792]
[1673225719485,3.9319114,17165.0,17164.0,0.02934792]
[1673225719936,4.45403156,17165.0,17164.0,0.02934792]
[1673225720170,4.39407085,17165.0,17164.0,0.02934792]
[1673225720391,5.00837085,17165.0,17164.0,0.02934792]
[1673225720618,5.14339856,17165.0,17164.0,0.02934792]
[1673225721394,4.49472497,17165.0,17164.0,0.02934792]
[1673225721613,4.71697179,17165.0,17164.0,0.02934792]
[1673225721834,4.6815551,17165.0,17164.0,0.02434792]
[1673225722759,3.9544551,17165.0,17164.0,0.02434792]
[1673225722974,3.31060828,17165.0,17164.0,0.02434792]
[1673225723207,3.74582545,17165.0,17164.0,0.02434792]
[1673225723466,3.31060828,17165.0,17164.0,0.01]
[1673225724130,3.8328551,17165.0,17164.0,0.01]
[1673225725555,4.1328551,17165.0,17164.0,0.01]
[1673225725778,3.8328551,17165.0,17164.0,0.01]
[1673225726495,3.37063003,17165.0,17164.0,0.01]
[1673225726979,3.89326714,17165.0,17164.0,0.01]
[1673225727235,3.83324344,17165.0,17164.0,0.01]
[1673225728186,3.83316792,17165.0,17164.0,0.01]
[1673225728936,3.37354613,17165.0,17164.0,0.01]
[1673225729920,3.83331882,17165.0,17164.0,0.01]
[1673225730863,3.31053276,17165.0,17164.0,0.01]
[1673225731613,3.83331882,17165.0,17164.0,0.01]
[1673225732330,3.31053276,17165.0,17164.0,0.01]
[1673225732566,3.83331882,17165.0,17164.0,0.01]
[1673225733051,3.85030197,17165.0,17164.0,0.01]
[1673225733291,0.4,17164.0,17163.0,0.00308485]
[1673225733557,2.46004816,17164.0,17163.0,0.00308485]
[1673225734064,3.09747596,17164.0,17163.0,0.00308485]
[1673225734305,2.6617243,17164.0,17163.0,0.01308485]
[1673225735522,3.76712436,17164.0,17163.0,0.01308485]
[1673225737014,3.7838785,17164.0,17163.0,0.01308485]
[1673225738464,3.26109244,17164.0,17163.0,0.01308485]
[1673225739702,3.78448705,17164.0,17163.0,0.01308485]
[1673225740457,3.32541855,17164.0,17163.0,0.01308485]
[1673225742724,2.34280455,17164.0,17163.0,0.01308485]
[1673225742953,1.81940994,17164.0,17163.0,0.01308485]
[1673225743191,2.34280455,17164.0,17163.0,0.01308485]
[1673225743701,1.81940994,17164.0,17163.0,0.01308485]
[1673225743991,1.23679594,17164.0,17163.0,0.01308485]
[1673225745903,0.01675414,17164.0,17163.0,0.49003429]
[1673225746140,0.01675414,17164.0,17163.0,1.2006784]
[1673225746141,0.45320428,17164.0,17163.0,1.2006784]
[1673225746585,0.80231948,17164.0,17163.0,1.7833264]
[1673225746836,0.45317552,17164.0,17163.0,1.7833264]
[1673225747097,0.19131899,17164.0,17163.0,1.7833264]
[1673225747350,0.61100049,17165.0,17163.0,2.46484854]
[1673225747351,0.09241899,17165.0,17163.0,2.46484854]
[1673225747635,0.75522546,17166.0,17164.0,0.93495005]
[1673225747636,0.4060815,17166.0,17164.0,0.93495005]
[1673225747884,0.4060815,17166.0,17165.0,1.930834]
[1673225748143,0.4060815,17166.0,17165.0,2.043134]
[1673225748406,0.4060815,17166.0,17165.0,2.13961879]
[1673225748915,0.75522546,17166.0,17165.0,2.13961879]
[1673225749450,0.75522546,17166.0,17165.0,2.17361879]
[1673225750248,0.75522546,17166.0,17165.0,2.17633945]
[1673225750484,0.4060815,17166.0,17165.0,2.17633945]
[1673225751270,0.42074256,17166.0,17165.0,2.17633945]
[1673225751790,0.15888603,17166.0,17165.0,2.14233945]
[1673225752033,0.15888603,17166.0,17165.0,2.17633945]
[1673225752829,0.15888603,17166.0,17165.0,2.14233945]
[1673225753557,0.15888603,17166.0,17165.0,2.17633945]
[1673225753819,0.15888603,17166.0,17165.0,2.14233945]
[1673225754110,0.15888603,17166.0,17165.0,2.17633945]
[1673225755607,0.15888603,17166.0,17165.0,2.75891945]
[1673225757360,0.15888603,17166.0,17165.0,2.17633945]
[1673225760870,0.15888603,17166.0,17165.0,2.14233945]
[1673225761386,0.15552903,17166.0,17165.0,2.14233945]
[1673225762376,0.15552903,17166.0,17165.0,1.77394479]
[1673225764695,0.15552903,17166.0,17165.0,2.13961879]
[1673225765194,0.15552903,17166.0,17165.0,1.77394479]
[1673225765458,0.15552903,17166.0,17165.0,1.77420359]
[1673225765712,0.15552903,17166.0,17165.0,2.13987759]
[1673225766991,0.15552903,17166.0,17165.0,1.77420359]
[1673225768515,0.15552903,17166.0,17165.0,2.13987759]
[1673225771320,0.15552903,17166.0,17165.0,3.19657108]
[1673225771576,0.04943513,17167.0,17166.0,0.4]
[1673225771820,0.04943513,17167.0,17166.0,2.70787987]
[1673225772074,0.00015,17168.0,17166.0,2.70787987]
[1673225772329,0.00015,17168.0,17167.0,0.478774]
[1673225772589,0.01055141,17171.0,17167.0,2.10051918]
[1673225772844,0.06032315,17171.0,17168.0,1.11565189]
[1673225773103,0.06032315,17171.0,17169.0,0.60335189]
[1673225773385,0.06032315,17171.0,17170.0,1.061185]
[1673225773633,0.06032315,17171.0,17170.0,0.478774]
[1673225773891,0.01055141,17171.0,17170.0,0.478774]
[1673225774162,0.01055141,17171.0,17170.0,0.1131]
[1673225774445,0.01055141,17171.0,17170.0,0.5131]
[1673225774694,0.01055141,17171.0,17170.0,1.57227942]
[1673225774943,0.01055141,17171.0,17170.0,2.15469042]
[1673225775961,0.01055141,17171.0,17170.0,2.26704914]
[1673225776236,0.01055141,17171.0,17170.0,2.84946014]
[1673225776492,0.01055141,17171.0,17170.0,3.41928132]
[1673225776760,0.01055141,17171.0,17170.0,3.71928132]
[1673225777280,0.01055141,17171.0,17170.0,3.41928132]
[1673225778046,0.02424025,17171.0,17170.0,3.40762847]